bitfinex-derivatives/quotes_ETHF0:USTF0_20250908
["timestamp","ask_amount","ask_price","bid_price","bid_amount"]
[1757302380047,0.7148,4313.6,4313.5,0.7122]
[1757302380545,0.1234,4314.0,4313.5,0.8396]
[1757302380744,3.3312,4314.5,4313.8,1.71791072]
[1757302380745,0.5057,4313.9,4313.8,1.71791072]
[1757302381142,0.2053,4313.9,4313.8,1.71791072]
[1757302381343,0.5057,4313.9,4313.8,1.71791072]
[1757302382252,3.3312,4314.5,4313.8,1.41611072]
[1757302382550,0.1234,4314.0,4313.8,1.00571072]
[1757302382742,0.7148,4313.9,4313.8,1.50681072]
[1757302383751,0.7148,4313.9,4313.8,1.71791072]
[1757302384344,0.7148,4313.9,4313.8,1.41611072]
[1757302384650,0.7148,4313.9,4313.8,0.1993]
[1757302385250,0.7148,4313.9,4313.6,0.3018]
[1757302385451,0.2078,4313.5,4313.4,1.72461072]
[1757302385649,0.2943,4313.7,4313.6,0.7189]
[1757302385849,0.5021,4313.7,4313.6,0.7189]
[1757302388654,0.702,4313.7,4313.6,0.7189]
[1757302389449,0.1184,4313.5,4313.4,2.67128479]
[1757302389755,0.2943,4313.4,4313.3,5.18577407]
[1757302390048,0.702,4313.4,4313.3,5.38437407]
[1757302390250,0.702,4313.4,4313.3,3.2078]
[1757302390854,0.702,4313.4,4313.0,0.3124]
[1757302391850,0.702,4313.4,4312.9,0.233]
[1757302392357,0.702,4313.4,4313.0,0.3124]
[1757302392654,0.702,4313.4,4313.3,0.7189]
[1757302394854,0.702,4313.4,4313.3,0.1986]
[1757302395051,0.2943,4313.3,4313.1,0.3124]
[1757302395357,0.702,4313.2,4313.1,0.511]
[1757302395656,0.5261,4313.0,4312.9,0.1986]
[1757302395857,0.8204,4313.0,4312.9,0.7189]
[1757302399648,0.702,4313.0,4312.9,0.7189]
[1757302400655,0.5021,4313.0,4312.9,0.7189]
[1757302402257,3.7339,4313.5,4313.4,0.1986]
[1757302402455,3.9669,4313.5,4313.4,1.72461072]
[1757302402958,4.2612,4313.5,4313.4,1.72461072]
[1757302403156,4.0282,4313.5,4313.4,1.72461072]
[1757302403756,3.7351,4314.0,4313.5,0.1261]
[1757302404059,3.7351,4314.0,4313.9,1.72461072]
[1757302404060,3.7099,4314.0,4313.9,1.72461072]
[1757302406171,3.9098,4314.0,4313.9,1.72461072]
[1757302410456,3.7099,4314.0,4313.9,1.72461072]
[1757302410656,3.2078,4314.0,4313.9,1.72461072]
[1757302411258,3.7099,4314.0,4313.9,1.72461072]
[1757302412963,3.2078,4314.0,4313.9,1.72461072]
[1757302413757,0.5021,4314.6,4314.5,0.4065]
[1757302413962,0.5021,4314.6,4314.5,1.72461072]
[1757302414366,0.5021,4314.6,4314.5,1.85071072]
[1757302418658,0.702,4314.6,4314.5,1.85071072]
[1757302419065,0.702,4314.6,4314.5,1.72461072]
[1757302429080,0.702,4314.6,4314.1,0.0695]
[1757302429285,0.7042,4314.2,4314.1,0.0695]
[1757302429589,0.7042,4314.2,4313.5,3.2078]
[1757302429590,0.6455,4314.2,4313.5,3.2078]
[1757302429786,0.4125,4313.6,4313.5,3.4061]
[1757302430087,0.7042,4313.6,4313.5,3.4061]
[1757302430286,0.7042,4313.6,4313.5,3.698]
[1757302431182,0.2917,4313.9,4313.5,3.7341]
[1757302431383,0.3195,4314.0,4313.9,0.4902]
[1757302431681,0.4125,4314.0,4313.9,0.6972]
[1757302431886,0.7042,4314.0,4313.9,0.6972]
[1757302434085,3.912,4314.0,4313.9,0.6972]
[1757302434388,4.0284,4314.0,4313.9,0.6972]
[1757302434591,3.912,4314.0,4313.9,0.6972]
[1757302436387,4.0284,4314.0,4313.9,0.6972]
[1757302439393,4.0284,4314.0,4313.9,0.1983]
[1757302439595,4.0284,4314.0,4313.7,0.85167574]
[1757302439997,4.0284,4314.0,4313.9,0.1983]
[1757302440491,3.7367,4314.0,4313.7,1.14357574]
[1757302440695,0.2917,4313.7,4313.6,0.0695]
[1757302440887,0.2917,4313.7,4313.6,0.7667]
[1757302441082,0.7042,4313.7,4313.6,0.6972]
[1757302441796,0.4948,4313.7,4313.6,0.6972]
[1757302444599,0.2031,4313.7,4313.6,0.6972]
[1757302444798,0.2917,4313.9,4313.6,0.4053]
[1757302444992,0.4948,4313.9,4313.8,1.54887574]
[1757302445185,0.7042,4313.9,4313.8,1.54887574]
[1757302447593,3.2078,4314.0,4313.8,1.25697574]
[1757302447803,0.3068,4314.3,4314.2,0.3982]
[1757302448002,0.5004,4314.3,4314.2,1.56427574]
[1757302449087,3.7476,4314.6,4314.2,1.56427574]
[1757302449293,3.4408,4314.6,4314.2,1.24987574]
[1757302449593,0.5004,4314.5,4314.4,0.7126]
[1757302449895,3.2078,4314.6,4314.4,0.3982]
[1757302450093,0.9374,4314.9,4314.8,0.7126]
[1757302450296,0.7044,4314.9,4314.8,0.7126]
[1757302450599,0.9374,4314.9,4314.8,1.56427574]
[1757302451601,0.7044,4314.9,4314.8,1.56427574]
[1757302454206,0.233,4315.0,4314.8,1.56427574]
[1757302454207,0.3068,4315.2,4314.8,1.56427574]
[1757302454394,0.4266,4315.1,4315.0,0.3982]
[1757302454598,0.7334,4315.1,4315.0,0.7126]
[1757302455005,0.5004,4315.1,4315.0,0.7126]
[1757302455503,0.5004,4315.1,4315.0,1.56427574]
[1757302456498,0.7044,4315.1,4315.0,1.56427574]
[1757302459205,0.7044,4315.1,4315.0,0.7126]
[1757302459402,0.3976,4315.1,4314.4,0.85167574]
[1757302459599,0.7044,4314.6,4314.5,0.1951]
[1757302460508,0.7044,4314.6,4314.5,0.5095]
[1757302460705,0.7044,4314.6,4314.5,0.7126]
[1757302463606,0.1198,4315.0,4314.5,0.8366]
[1757302463808,0.7334,4314.9,4314.8,1.56427574]
[1757302464005,0.9374,4314.9,4314.8,1.56427574]
[1757302465611,0.7044,4314.9,4314.8,1.56427574]
[1757302470314,0.7044,4314.9,4314.5,0.3144]
[1757302470711,0.3976,4314.6,4314.5,0.5095]
[1757302471014,0.3068,4314.2,4314.0,3.5222]
[1757302471214,0.7044,4314.3,4314.2,0.7126]
[1757302472310,0.1936,4314.4,4314.3,0.7126]
[1757302472514,0.5004,4314.4,4314.3,1.56427574]
[1757302473122,0.1936,4314.4,4314.3,1.56427574]
[1757302473913,0.5004,4314.4,4314.3,1.56427574]
[1757302474508,0.3068,4314.9,4314.3,1.24987574]
[1757302474710,0.5004,4314.8,4314.7,1.24987574]
[1757302474907,0.7044,4314.8,4314.7,1.24987574]
[1757302475117,0.7044,4314.8,4314.7,1.56167574]
[1757302478016,3.2078,4315.0,4314.7,1.24987574]
[1757302478223,3.5172,4315.0,4314.8,0.4141]
[1757302478411,3.9561,4315.0,4314.9,0.7259]
[1757302479323,4.68926417,4315.0,4314.9,0.7259]
[1757302480920,4.1656,4315.0,4314.9,0.7259]
[1757302481921,4.285,4315.0,4314.9,0.7259]
[1757302482621,4.052,4315.0,4314.9,0.7259]
[1757302482819,4.285,4315.0,4314.9,0.7259]
[1757302483020,4.285,4315.0,4314.9,0.2]
[1757302483221,4.052,4315.0,4314.9,0.2]
[1757302483423,4.285,4315.0,4314.9,0.2]
[1757302484424,0.7248,4314.8,4314.7,1.36347574]
[1757302485123,0.7248,4314.8,4314.7,0.2]
[1757302485320,1.80947574,4314.8,4314.5,0.0695]
[1757302486018,0.4154,4314.8,4314.7,0.4141]
[1757302486222,0.7248,4315.3,4315.2,0.2141]
[1757302486419,0.7248,4315.3,4315.2,0.7259]
[1757302486619,0.5153,4315.3,4315.2,1.57757574]
[1757302486818,0.7483,4315.3,4315.2,1.57757574]
[1757302487514,3.2078,4315.5,4315.2,1.57757574]
[1757302487724,3.5172,4315.5,4315.4,0.4141]
[1757302487915,3.7231,4315.5,4315.4,0.7259]
[1757302489126,3.9326,4315.5,4315.4,0.7259]
[1757302490429,4.4559971,4315.5,4315.4,0.7259]
[1757302490923,0.5233971,4315.5,4315.4,0.7259]
[1757302491120,0.7483,4315.8,4315.7,0.7259]
[1757302491326,0.7483,4315.8,4315.7,1.57757574]
[1757302491327,0.9578,4315.8,4315.7,1.57757574]
[1757302492826,0.9578,4315.8,4315.7,0.7259]
[1757302493029,0.9578,4315.8,4315.7,1.57757574]
[1757302493227,0.7248,4315.8,4315.7,1.57757574]
[1757302493423,3.4408,4316.1,4315.7,1.26577574]
[1757302493625,0.5153,4315.9,4315.8,0.7259]
[1757302493928,0.7248,4315.9,4315.8,0.7259]
[1757302494727,3.2078,4316.1,4316.0,0.5333]
[1757302494930,3.2078,4316.1,4316.0,1.69677574]
[1757302495333,0.3094,4316.4,4316.0,1.69677574]
[1757302495536,0.7248,4316.4,4316.3,1.57757574]
[1757302498338,0.7248,4316.4,4316.3,0.7259]
[1757302500333,3.5172,4316.7,4316.3,1.41899536]
[1757302500532,3.7231,4316.7,4316.6,0.4141]
[1757302500736,3.2078,4316.7,4316.6,0.7259]
[1757302500931,0.5424,4317.0,4316.9,0.4141]
[1757302501123,3.2078,4317.3,4316.9,0.7259]
[1757302501327,3.6232,4317.8,4317.7,0.2]
[1757302501732,3.9326,4317.8,4317.7,0.2]
[1757302501939,0.7248,4317.8,4317.7,0.7259]
[1757302504332,0.3094,4318.3,4318.0,0.5333]
[1757302504538,1.0772,4318.5,4318.4,0.5118]
[1757302505234,0.7678,4318.5,4317.7,0.18452744]
[1757302505432,0.2139,4317.9,4317.8,0.7156]
[1757302505630,0.5298,4317.9,4317.8,0.7156]
[1757302505832,0.3159,4318.4,4317.9,0.3053]
[1757302506038,0.7291,4318.4,4318.3,0.504]
[1757302506540,0.7291,4318.4,4318.3,0.7156]
[1757302507129,0.17,4318.9,4318.3,0.4103]
[1757302507330,0.5298,4318.7,4318.6,1.72049536]
[1757302507732,0.5298,4318.7,4318.6,4.92829536]
[1757302508238,0.7291,4318.7,4318.6,4.92829536]
[1757302510739,0.17,4318.9,4318.8,0.7156]
[1757302511133,0.6998,4318.9,4318.8,0.7156]
[1757302511338,0.17,4318.9,4318.8,1.72049536]
[1757302512432,2.0,4319.3,4319.2,0.7156]
[1757302512631,2.0,4319.3,4319.2,1.95449536]
[1757302513235,2.5298,4319.3,4319.2,1.72049536]
[1757302513438,2.5298,4319.3,4319.2,1.95449536]
[1757302514039,2.5298,4319.3,4319.2,1.72049536]
[1757302514346,2.7291,4319.3,4319.2,0.9496]
[1757302515845,2.0,4319.3,4319.2,0.9496]
[1757302516050,2.7291,4319.3,4319.2,0.9496]
[1757302516652,2.0,4319.3,4319.2,0.9496]
[1757302518349,2.5298,4319.3,4319.2,0.9496]
[1757302520852,2.7291,4319.3,4319.2,0.9496]
[1757302521857,2.7291,4319.3,4319.2,0.7156]
[1757302522060,2.7291,4319.3,4319.2,0.4317]
[1757302522858,0.7291,4319.2,4319.1,3.2078]
[1757302523158,2.0,4319.3,4318.8,1.20359536]
[1757302523159,0.7291,4318.9,4318.8,1.20359536]
[1757302523353,0.7291,4318.9,4318.8,1.74189536]
[1757302523555,0.7291,4318.9,4318.8,1.95349536]
[1757302524157,2.4132,4319.3,4319.2,0.4103]
[1757302524455,0.7291,4319.1,4319.0,3.2078]
[1757302525356,0.7291,4319.1,4319.0,3.7118]
[1757302525552,0.7291,4319.1,4319.0,3.9234]
[1757302526860,0.7291,4319.1,4319.0,3.7118]
[1757302527054,0.7291,4319.1,4319.0,3.4065]
[1757302528756,4.7291,4319.1,4319.0,3.2078]
[1757302528952,0.2139,4319.0,4318.9,1.41519536]
[1757302529261,0.7291,4319.2,4319.1,0.4103]
[1757302529461,0.7291,4319.2,4319.1,0.7156]
[1757302530257,0.7291,4319.2,4319.1,1.72049536]
[1757302530854,0.7291,4319.2,4319.0,1.23889536]
[1757302531058,2.0,4319.3,4319.0,1.00489536]
[1757302531059,0.7291,4319.1,4319.0,1.00489536]
[1757302531248,0.4132,4318.8,4318.7,0.504]
[1757302531448,0.7291,4318.8,4318.7,0.738]
[1757302531651,0.7291,4318.8,4318.7,0.234]
[1757302531855,0.7291,4318.8,4318.6,1.00489536]
[1757302531856,0.3159,4318.7,4318.6,1.00489536]
[1757302532058,0.7291,4318.7,4318.6,1.23889536]
[1757302532251,0.3159,4318.6,4318.5,3.4418]
[1757302532661,0.7291,4318.6,4318.5,3.4418]
[1757302533662,0.7291,4318.6,4318.5,3.6405]
[1757302533866,0.7291,4318.6,4318.5,3.2078]
[1757302534157,0.7291,4318.1,4318.0,3.7118]
[1757302534355,0.7291,4318.1,4318.0,4.1574]
[1757302536260,0.7291,4318.1,4318.0,3.4418]
[1757302536659,0.7291,4318.1,4318.0,3.641]
[1757302537256,0.7291,4318.1,4318.0,3.8545]
[1757302537461,0.7291,4318.1,4318.0,4.1486]
[1757302537657,0.7291,4318.1,4318.0,3.407]
[1757302537964,0.7291,4318.1,4318.0,3.4418]
[1757302538864,0.7291,4318.1,4318.0,3.2078]
[1757302539765,0.7291,4318.1,4318.0,3.407]
[1757302540070,0.7173,4317.8,4317.7,0.1992]
[1757302540266,0.7173,4317.8,4317.7,0.7273]
[1757302540562,0.7173,4317.8,4317.7,0.7068]
[1757302540765,0.836,4317.5,4317.1,0.2941]
[1757302541261,0.5413,4317.5,4317.1,0.2941]
[1757302541562,0.5037,4317.3,4317.2,0.7762]
[1757302541767,0.7173,4317.3,4317.2,0.7762]
[1757302542461,0.7173,4317.3,4317.2,0.0694]
[1757302542665,0.7173,4317.3,4317.2,0.5627]
[1757302543163,0.7173,4317.3,4317.2,0.7762]
[1757302543361,3.5025,4317.8,4317.3,0.2941]
[1757302543665,3.9251,4317.8,4317.7,0.7068]
[1757302544459,0.5037,4317.8,4317.7,0.7068]
[1757302544964,0.2947,4318.2,4317.8,0.2941]
[1757302545167,0.5287,4318.6,4318.1,0.7068]
[1757302545365,0.2947,4318.5,4318.2,0.2941]
[1757302545561,0.4226,4318.6,4318.5,0.4127]
[1757302545758,0.4226,4318.6,4318.5,0.7068]
[1757302546162,0.7173,4318.6,4318.5,0.7068]
[1757302547671,0.7173,4318.6,4318.5,0.4127]
[1757302547968,0.5037,4318.1,4318.0,1.77149536]
[1757302548569,0.5037,4318.1,4318.0,2.06559536]
[1757302548774,0.7173,4318.1,4318.0,2.06559536]
[1757302549969,0.7173,4318.1,4318.0,1.94569536]
[1757302551273,0.5037,4318.1,4318.0,2.06559536]
[1757302551670,0.2947,4318.4,4318.3,0.7068]
[1757302551870,3.5025,4318.5,4318.3,0.4127]
[1757302552071,3.7115,4318.5,4318.4,0.7068]
[1757302554773,0.5037,4318.5,4318.4,0.7068]
[1757302554974,0.5037,4318.5,4318.4,1.71169536]
[1757302555176,0.5037,4318.9,4318.8,0.7068]
[1757302555964,0.7173,4318.9,4318.8,0.7068]
[1757302557071,0.7173,4318.9,4318.5,0.5281]
[1757302557279,0.4226,4318.9,4318.5,0.234]
[1757302557578,0.1187,4319.0,4318.5,0.234]
[1757302557579,0.2947,4318.8,4318.7,0.1992]
[1757302557778,0.7173,4318.8,4318.7,0.4933]
[1757302557979,0.7173,4318.8,4318.7,0.7068]
[1757302560373,0.7173,4318.8,4318.7,1.55649348]
[1757302560777,0.5037,4318.8,4318.7,1.55649348]
[1757302561086,0.5037,4318.9,4318.8,0.7068]
[1757302562577,0.2947,4319.2,4318.8,0.4127]
[1757302562783,0.7173,4319.2,4319.1,1.34299348]
[1757302562977,0.7173,4319.2,4319.1,0.1992]
[1757302563773,0.7173,4319.2,4318.9,0.2941]
[1757302563983,0.5413,4319.0,4318.9,0.4933]
[1757302564281,0.836,4319.0,4318.9,1.34299348]
[1757302564487,0.836,4319.0,4318.9,1.55649348]
[1757302565182,0.4088,4318.7,4318.6,0.4992]
[1757302565384,0.7151,4318.7,4318.6,0.4992]
[1757302565778,0.7151,4318.7,4318.6,0.7029]
[1757302569991,0.5011,4318.8,4318.7,0.7224]
[1757302570192,0.5011,4318.8,4318.7,1.57209348]
[1757302570386,0.7151,4318.8,4318.7,1.57209348]
[1757302571784,0.7151,4318.8,4318.7,1.05479348]
[1757302572390,0.7151,4318.8,4318.7,0.2051]
[1757302573487,0.3063,4318.7,4318.4,0.0694]
[1757302573691,0.8372,4318.5,4318.4,0.0694]
[1757302573989,0.8372,4318.5,4318.0,0.234]
[1757302574188,0.8372,4318.5,4318.1,0.3136]
[1757302574691,0.8372,4318.5,4318.4,0.5187]
[1757302575587,0.7151,4318.5,4318.4,0.7224]
[1757302575789,0.1948,4318.5,4318.4,0.7224]
[1757302575993,3.2078,4318.8,4318.2,0.84969348]
[1757302575994,0.5011,4318.6,4318.5,0.8454]
[1757302576287,0.5011,4318.6,4318.5,1.69509348]
[1757302576996,0.5011,4318.7,4318.6,0.7224]
[1757302577292,0.7151,4318.7,4318.6,0.7224]
[1757302579294,0.7151,4318.7,4318.6,0.2051]
[1757302579494,3.2078,4318.8,4318.4,0.5187]
[1757302579495,0.5309,4318.5,4318.4,0.5187]
[1757302579694,0.8372,4318.5,4318.4,0.5187]
[1757302579993,0.8372,4318.5,4318.4,0.7224]
[1757302580194,0.8372,4318.5,4318.3,0.0694]
[1757302580491,0.7151,4318.4,4318.3,0.0694]
[1757302580687,0.7151,4318.4,4318.3,1.43779348]
[1757302580884,0.7151,4318.4,4318.3,1.57209348]
[1757302581396,3.4418,4318.8,4318.3,1.25849348]
[1757302581601,0.5011,4318.7,4318.6,1.57209348]
[1757302581893,0.7151,4318.7,4318.6,1.57209348]
[1757302583193,0.234,4319.0,4318.6,1.25849348]
[1757302583395,0.5011,4318.9,4318.8,0.4088]
[1757302583596,0.5011,4318.9,4318.8,0.7224]
[1757302583998,0.7151,4318.9,4318.8,0.7224]
[1757302589192,3.2078,4319.2,4318.8,0.7224]
[1757302589391,0.73722251,4319.1,4319.0,0.7224]
[1757302589593,0.93202251,4319.1,4319.0,0.7224]
[1757302590098,1.23832251,4319.1,4319.0,0.7224]
[1757302590299,1.23832251,4319.1,4319.0,0.2051]
[1757302591502,1.23832251,4319.1,4319.0,0.5187]
[1757302594103,1.23832251,4319.1,4319.0,0.2051]
[1757302594803,1.23832251,4319.1,4318.8,0.3136]
[1757302595006,1.23832251,4319.0,4318.9,0.7224]
[1757302595702,1.36622251,4319.0,4318.9,0.7224]
[1757302596109,1.23832251,4319.0,4318.9,0.7224]
[1757302596606,1.36622251,4319.0,4318.9,0.7224]
[1757302596900,0.52322251,4319.0,4318.9,7.9302]
[1757302597099,2.0,4319.3,4319.2,0.4106]
[1757302597303,2.52314761,4319.3,4319.2,1.57059348]
[1757302597503,2.0,4319.3,4319.2,5.80459348]
[1757302598000,2.5185,4319.3,4319.2,4.3103]
[1757302598200,2.7308,4319.3,4319.2,0.7209]
[1757302598408,2.7308,4319.3,4319.2,0.4106]
[1757302598604,2.7308,4319.3,4319.2,0.2061]
[1757302599401,2.7308,4319.3,4319.2,0.7209]
[1757302601109,2.7308,4319.3,4319.2,0.2061]
[1757302601402,0.7308,4318.9,4318.8,0.4401]
[1757302601708,0.7308,4318.9,4318.8,0.7504]
[1757302602106,0.7308,4318.9,4318.8,0.4401]
[1757302602504,0.7308,4318.9,4318.8,0.7504]
[1757302603712,0.7308,4318.9,4318.8,0.9549]
[1757302604100,0.5185,4318.9,4318.8,0.9549]
[1757302604511,0.2081,4318.9,4318.8,0.9549]
[1757302604806,0.3104,4319.1,4318.9,0.3103]
[1757302605014,0.5185,4319.1,4319.0,1.37819348]
[1757302605314,0.7308,4319.1,4319.0,1.26029348]
[1757302605513,0.7308,4319.1,4319.0,1.57059348]
[1757302607710,2.0,4319.3,4319.2,0.7209]
[1757302608309,2.0,4319.3,4319.2,0.9549]
[1757302610210,2.0,4319.3,4319.2,4.9549]
[1757302610413,0.3104,4320.1,4319.3,0.3103]
[1757302610616,0.5185,4320.1,4320.0,1.57059348]
[1757302611103,0.2081,4320.1,4320.0,0.7209]
[1757302611310,0.7308,4320.1,4320.0,1.57059348]
[1757302612003,0.5185,4320.2,4320.1,0.7209]
[1757302612207,0.5185,4320.2,4320.1,1.57059348]
[1757302612814,0.7308,4320.4,4320.3,0.4106]
[1757302613015,0.7308,4320.4,4320.3,0.7209]
[1757302613313,0.4204,4320.1,4320.0,0.9549]
[1757302613612,0.7308,4320.1,4320.0,1.80459348]
[1757302615215,3.3299,4320.5,4320.0,1.92249348]
[1757302615419,0.5185,4320.2,4320.1,0.7209]
[1757302615720,0.7308,4320.2,4320.1,0.7209]
[1757302615919,3.3299,4320.5,4320.2,0.3103]
[1757302616112,0.7308,4320.4,4320.3,0.2061]
[1757302616415,0.7308,4320.4,4320.3,0.5164]
[1757302616618,0.7308,4320.4,4320.3,0.7209]
[1757302617517,0.5185,4320.4,4320.3,0.7209]
[1757302619018,0.7308,4320.4,4320.3,0.7209]
[1757302620218,3.2078,4320.5,4320.3,0.7209]
[1757302620219,3.2078,4320.5,4320.4,0.3103]
[1757302620418,3.2078,4320.5,4320.4,1.57059348]
[1757302620919,0.5185,4320.6,4320.5,0.7209]
[1757302621117,0.7308,4320.6,4320.5,0.7209]
[1757302621517,0.7308,4320.6,4320.5,0.2061]
[1757302621713,0.1279,4320.5,4320.3,0.84969348]
[1757302622024,0.7308,4320.4,4320.3,1.57059348]
[1757302622522,0.2081,4320.5,4320.4,0.7209]
[1757302622722,0.5185,4320.5,4320.4,0.7209]
[1757302624324,0.7308,4320.9,4320.8,0.7209]
[1757302626019,0.2954,4321.9,4321.7,0.3037]
[1757302626226,3.3357,4322.5,4321.8,1.00290922]
[1757302626227,0.2954,4322.4,4321.8,1.00290922]
[1757302626425,0.7087,4322.4,4322.3,0.5041]
[1757302626619,0.7087,4322.4,4322.3,0.7032]
[1757302627226,0.7087,4322.4,4322.3,0.3995]
[1757302627928,0.7087,4322.4,4322.3,0.7032]
[1757302628519,0.7087,4322.4,4322.3,0.2004]
[1757302628726,0.4133,4322.2,4322.1,3.2772]
[1757302628923,0.7087,4322.2,4322.1,3.2772]
[1757302629124,0.7087,4321.4,4321.3,3.2078]
[1757302630424,0.7087,4320.8,4320.7,3.9459]
[1757302631232,0.7087,4320.8,4320.7,4.145]
[1757302631624,0.7087,4320.8,4320.7,3.911]
[1757302639328,0.7087,4320.8,4320.7,3.4082]
[1757302639526,0.7087,4320.8,4320.0,0.1179]
[1757302639527,0.2954,4320.7,4320.2,3.5115]
[1757302639733,1.12680922,4321.0,4320.2,3.911]
[1757302639734,0.7087,4320.3,4320.2,3.911]
[1757302644835,0.4964,4320.3,4320.2,3.911]
[1757302645031,0.201,4320.3,4320.2,3.911]
[1757302646639,0.4964,4320.3,4320.2,3.911]
[1757302647342,0.7087,4320.3,4320.2,3.911]
[1757302648940,0.201,4320.3,4320.2,3.911]
[1757302649140,0.201,4320.4,4320.3,0.3037]
[1757302649337,0.4964,4320.4,4320.3,0.7032]
[1757302649542,0.7087,4320.4,4320.3,0.7032]
[1757302650735,0.7087,4320.4,4320.3,0.5041]
[1757302651242,0.7087,4319.8,4319.7,0.2004]
[1757302651542,0.4133,4319.8,4319.6,0.5377]
[1757302651738,0.7087,4319.7,4319.6,0.5041]
[1757302652240,0.7087,4319.7,4319.6,0.7032]
[1757302652839,1.25150645,4321.6,4320.3,0.3037]
[1757302653140,3.85255,4320.7,4320.6,0.5041]
[1757302653340,3.6211,4320.7,4320.1,0.3037]
[1757302653539,0.201,4320.2,4320.1,0.7032]
[1757302653841,0.4964,4320.2,4320.1,0.7032]
[1757302654346,0.201,4320.2,4320.1,0.7032]
[1757302654535,3.2078,4320.7,4320.1,0.3995]
[1757302654739,0.7087,4320.3,4320.2,0.7032]
[1757302655545,3.2078,4320.7,4320.2,0.7032]
[1757302655750,0.2129,4320.4,4320.3,0.2965]
[1757302655952,0.2129,4320.4,4320.3,0.7052]
[1757302656546,0.3045,4320.6,4320.3,0.7052]
[1757302656747,0.3045,4320.6,4320.0,1.12910922]
[1757302656748,0.5174,4320.5,4320.4,0.7052]
[1757302657145,0.8335,4320.5,4320.4,0.7052]
[1757302657449,0.8335,4320.5,4320.4,0.4988]
[1757302657955,0.7114,4320.5,4320.4,0.7052]
[1757302658539,0.3045,4321.2,4320.6,0.4087]
[1757302658744,0.1221,4323.0,4321.4,0.7052]
[1757302658745,0.3045,4321.9,4321.4,0.7052]
[1757302659049,0.5174,4321.8,4321.7,0.7052]
[1757302659242,0.7114,4322.5,4322.4,0.4087]
[1757302659550,3.2078,4322.6,4322.5,0.8245]
[1757302660254,3.4207,4322.6,4322.5,0.8245]
[1757302662148,3.7252,4322.6,4322.5,0.8245]
[1757302662344,3.9192,4322.6,4322.5,0.8245]
[1757302662947,3.9192,4322.6,4322.5,0.2023]
[1757302663458,0.8335,4322.5,4322.4,0.4087]
[1757302663658,0.8335,4322.5,4322.4,0.7052]
[1757302664158,0.7114,4322.5,4322.4,0.7052]
[1757302664455,3.2078,4322.6,4322.0,0.1193]
[1757302664456,3.9192,4322.6,4322.5,0.8245]
[1757302665151,3.9192,4322.6,4322.5,0.7052]
[1757302665954,0.2129,4322.6,4322.5,0.8245]
[1757302666255,0.5395,4322.9,4322.5,0.528]
[1757302666559,3.4428,4323.1,4323.0,0.528]
[1757302666760,3.9602,4323.1,4323.0,0.8245]
[1757302667053,4.1542,4323.1,4323.0,0.7052]
[1757302667255,3.4207,4323.1,4323.0,0.8245]
[1757302667456,3.7252,4323.1,4323.0,0.8245]
[1757302668763,0.2129,4323.1,4323.0,0.8245]
[1757302669365,0.7114,4323.1,4323.0,0.8245]
[1757302670452,0.9464,4323.4,4323.3,0.4087]
[1757302670659,0.7114,4323.4,4323.3,0.7052]
[1757302671663,0.7114,4324.0,4323.9,0.7052]
[1757302671960,0.2129,4324.0,4323.9,0.7052]
[1757302672159,3.2078,4324.1,4323.9,0.7052]
[1757302672359,0.1221,4325.0,4324.5,0.8245]
[1757302672360,3.4207,4324.6,4324.5,0.8245]
[1757302672567,3.9192,4324.6,4324.5,0.7052]
[1757302673161,0.4266,4324.5,4324.1,0.2965]
[1757302673368,0.7114,4324.5,4324.4,0.7052]
[1757302673565,0.2129,4324.5,4324.4,0.7052]
[1757302674060,3.2078,4324.6,4324.5,0.1193]
[1757302674269,0.2129,4324.8,4324.7,0.7052]
[1757302674460,3.5123,4325.1,4324.8,0.2965]
[1757302674661,0.3045,4326.1,4325.5,0.1193]
[1757302674861,0.194,4326.2,4326.1,0.7052]
[1757302675064,3.2078,4326.3,4326.1,0.7052]
[1757302675262,0.1221,4328.5,4327.1,0.2965]
[1757302675263,3.2078,4328.3,4327.1,0.2965]
[1757302675458,0.4069,4327.5,4327.4,0.7052]
[1757302675665,0.7114,4327.5,4327.4,0.7052]
[1757302676063,0.2129,4327.5,4327.4,0.7052]
[1757302676361,0.5174,4327.6,4327.5,0.528]
[1757302676559,0.4069,4327.6,4327.5,0.4087]
[1757302676758,0.7114,4327.6,4327.5,0.7052]
[1757302677858,3.2078,4328.3,4327.6,0.7052]
[1757302677859,0.2129,4327.7,4327.6,0.7052]
[1757302678058,0.7114,4327.7,4327.6,0.7052]
[1757302678263,3.2078,4328.3,4327.6,0.7052]
[1757302678264,0.2129,4327.8,4327.7,0.7052]
[1757302678563,3.9192,4328.3,4328.2,0.2023]
[1757302678960,3.6147,4328.3,4327.5,0.1193]
[1757302679166,0.3045,4328.2,4327.6,0.2965]
[1757302679363,0.5174,4327.7,4327.6,0.7052]
[1757302679565,0.7114,4327.7,4327.6,0.7052]
[1757302679869,3.4207,4328.3,4328.2,0.7052]
[1757302680165,0.3829,4328.9,4328.8,0.2023]
[1757302680372,0.3829,4328.9,4328.5,3.2078]
[1757302680373,0.7114,4328.6,4328.5,3.2078]
[1757302680568,0.7114,4328.6,4328.0,0.1193]
[1757302680569,0.2129,4328.5,4328.4,0.2064]
[1757302680775,0.5174,4328.5,4328.4,0.7052]
[1757302680964,0.2129,4328.5,4328.4,0.7052]
[1757302681267,0.3045,4328.8,4328.4,0.4087]
[1757302681467,0.7114,4328.8,4328.7,0.4087]
[1757302681769,0.7114,4328.8,4328.5,3.3271]
[1757302681770,0.4069,4328.8,4328.5,3.2078]